bitfinex-derivatives/quotes_SOLF0:USTF0_20250819
["timestamp","ask_amount","ask_price","bid_price","bid_amount"]
[1755605065835,5.62134146,182.15,182.04,2.86]
[1755605066035,4.52881439,182.14,182.04,2.86]
[1755605066336,4.52881439,182.13,182.04,2.86]
[1755605066543,5.62134146,182.15,182.04,2.86]
[1755605066735,4.52925489,182.14,182.04,2.86]
[1755605067044,4.52925489,182.13,182.04,2.86]
[1755605067341,5.62134146,182.15,182.04,2.86]
[1755605067535,4.52958384,182.14,182.04,2.86]
[1755605067736,4.52958384,182.13,182.04,2.86]
[1755605067935,5.62134146,182.15,182.04,2.86]
[1755605068136,4.52958384,182.14,182.04,2.86]
[1755605068336,4.52958384,182.13,182.04,2.86]
[1755605068535,3.61891916,182.15,182.04,2.86]
[1755605068741,4.53029007,182.14,182.04,2.86]
[1755605068942,4.53029007,182.13,182.04,2.86]
[1755605069146,3.61891916,182.15,182.04,2.86]
[1755605069341,4.53124436,182.14,182.04,2.86]
[1755605069538,4.53124436,182.13,182.04,2.86]
[1755605069742,3.61891916,182.15,182.04,2.86]
[1755605069943,4.53124402,182.14,182.04,2.86]
[1755605070135,4.53124402,182.13,182.04,2.86]
[1755605070333,3.61891916,182.15,182.04,2.86]
[1755605070536,4.53246254,182.14,182.04,2.86]
[1755605070736,4.53246254,182.13,182.04,2.86]
[1755605070941,3.61891916,182.15,182.04,2.86]
[1755605071141,4.53246185,182.14,182.04,2.86]
[1755605071343,4.53246185,182.13,182.04,2.86]
[1755605071643,3.61891916,182.15,182.04,2.86]
[1755605071842,4.53396452,182.14,182.04,2.86]
[1755605072141,4.53396452,182.13,182.04,2.86]
[1755605072343,3.61891916,182.15,182.04,2.86]
[1755605072543,4.53489034,182.14,182.04,2.86]
[1755605072742,4.53489034,182.13,182.04,2.86]
[1755605072935,3.61891916,182.15,182.04,2.86]
[1755605073138,4.53489034,182.14,182.04,2.86]
[1755605073444,4.53489034,182.13,182.04,2.86]
[1755605073644,3.61891916,182.15,182.04,2.86]
[1755605073946,4.53603364,182.14,182.04,2.86]
[1755605074145,4.53603364,182.13,182.04,2.86]
[1755605074445,3.61891916,182.15,182.04,2.86]
[1755605074641,4.5374127,182.14,182.04,2.86]
[1755605074847,3.61891916,182.05,181.99,0.95588639]
[1755605075042,4.5374127,182.04,181.89,2.92]
[1755605075237,3.61891916,181.99,181.89,2.92]
[1755605075746,3.61891916,182.06,181.93,2.92]
[1755605076044,4.53776173,182.05,181.95,2.92]
[1755605076248,3.61891916,182.06,181.95,2.92]
[1755605076444,4.53722395,182.05,181.95,2.92]
[1755605076639,5.63387887,182.1,181.95,2.92]
[1755605076845,4.53722612,182.09,181.95,2.92]
[1755605077051,4.53722612,182.08,181.95,2.92]
[1755605077247,4.53722612,182.07,181.95,2.92]
[1755605077549,4.53722612,182.06,181.95,2.92]
[1755605077747,4.53722612,182.05,181.95,2.92]
[1755605077946,4.53722612,182.04,181.95,2.92]
[1755605078147,4.53722612,182.03,181.95,2.92]
[1755605078350,5.63387887,182.1,181.95,2.92]
[1755605078542,7.12778723,182.09,181.95,2.92]
[1755605078747,4.53748651,182.08,181.95,2.92]
[1755605078948,4.53748651,182.07,181.95,2.92]
[1755605079140,4.53748651,182.06,181.95,2.92]
[1755605079449,5.63387887,182.1,181.95,2.92]
[1755605079450,4.53748651,182.05,181.95,2.92]
[1755605079646,4.53748651,182.04,181.95,2.92]
[1755605079948,4.53748651,182.03,181.95,2.92]
[1755605080151,5.63387887,182.1,181.95,2.92]
[1755605080352,4.53347989,182.09,181.95,2.92]
[1755605080648,4.53347989,182.08,181.95,2.92]
[1755605080848,4.53347989,182.07,181.95,2.92]
[1755605081051,4.53347989,182.06,181.95,2.92]
[1755605081241,4.53347989,182.05,181.95,2.92]
[1755605081443,4.53347989,182.04,181.95,2.92]
[1755605081744,5.63387887,182.1,181.95,2.92]
[1755605081945,4.53129354,182.09,181.95,2.92]
[1755605082149,4.53129354,182.08,181.95,2.92]
[1755605082350,4.53129354,182.07,181.95,2.92]
[1755605082553,4.53129354,182.06,181.95,2.92]
[1755605082752,5.63387887,182.1,181.95,2.92]
[1755605083052,4.52967163,182.09,181.95,2.92]
[1755605083257,4.52967163,182.08,181.95,2.92]
[1755605083449,4.52845094,182.07,181.95,2.92]
[1755605083650,4.52845094,182.06,181.95,2.92]
[1755605083956,4.52845094,182.05,181.95,2.92]
[1755605084148,4.52845094,182.04,181.95,2.92]
[1755605084354,5.63387887,182.1,181.95,2.92]
[1755605084652,4.52698568,182.09,181.95,2.92]
[1755605084845,4.52698568,182.08,181.95,2.92]
[1755605085048,4.52698568,182.07,181.95,2.92]
[1755605085248,4.52698568,182.06,181.95,2.92]
[1755605085551,4.52698568,182.05,181.95,2.92]
[1755605085752,4.52698568,182.04,181.95,2.92]
[1755605085952,5.63387887,182.1,181.95,2.92]
[1755605086156,4.52637205,182.09,181.95,2.92]
[1755605086351,4.52637205,182.08,181.95,2.92]
[1755605086646,4.52637205,182.07,181.95,2.92]
[1755605086847,4.52637205,182.06,181.95,2.92]
[1755605087047,4.52637205,182.05,181.95,2.92]
[1755605087245,4.52637205,182.04,181.95,2.92]
[1755605087446,5.63387887,182.1,181.95,2.92]
[1755605087645,4.52616669,182.09,181.95,2.92]
[1755605087849,4.52616669,182.08,181.95,2.92]
[1755605088152,4.52616669,182.07,181.95,2.92]
[1755605088346,4.52616669,182.06,181.95,2.92]
[1755605088544,4.52616669,182.05,181.95,2.92]
[1755605088748,5.63387887,182.1,181.95,2.92]
[1755605088948,4.51474097,182.09,181.95,2.92]
[1755605089154,4.51474097,182.08,181.95,2.92]
[1755605089359,4.51474097,182.07,181.95,2.92]
[1755605089558,4.51474097,182.06,181.95,2.92]
[1755605089757,4.51474097,182.05,181.95,2.92]
[1755605089956,5.63387887,182.1,181.95,2.92]
[1755605090156,4.51566679,182.09,181.95,2.92]
[1755605090357,4.51566679,182.08,181.95,2.92]
[1755605090553,4.51566679,182.07,181.95,2.92]
[1755605090755,4.51566679,182.06,181.95,2.92]
[1755605091053,5.63387887,182.1,181.95,2.92]
[1755605091054,4.51566679,182.05,181.95,2.92]
[1755605091356,5.63387887,182.1,181.95,2.92]
[1755605091656,4.51629745,182.09,181.95,2.92]
[1755605091959,4.5173658,182.08,181.95,2.92]
[1755605092155,4.5173658,182.07,181.95,2.92]
[1755605092356,4.5173658,182.06,181.95,2.92]
[1755605092555,5.63387887,182.1,181.95,2.92]
[1755605092859,4.51845314,182.09,181.95,2.92]
[1755605093054,4.51845314,182.08,181.95,2.92]
[1755605093256,4.51845314,182.07,181.95,2.92]
[1755605093561,5.63387887,182.1,181.95,2.92]
[1755605093760,4.51988879,182.09,181.95,2.92]
[1755605093959,5.63387887,182.1,181.95,2.92]
[1755605093960,4.51988879,182.08,181.95,2.92]
[1755605094160,4.51988879,182.07,181.95,8.414]
[1755605094361,4.51988879,182.06,181.96,3.07]
[1755605094561,5.63387887,182.1,181.96,3.07]
[1755605094761,4.52179704,182.09,181.96,3.07]
[1755605094957,4.52179704,182.08,181.96,3.07]
[1755605095152,4.52179704,182.07,181.96,3.07]
[1755605095357,4.52179704,182.06,181.96,3.07]
[1755605095554,5.63387887,182.1,181.96,3.07]
[1755605095758,4.52398978,182.09,181.96,3.07]
[1755605095963,4.52398978,182.08,181.96,3.07]
[1755605096161,4.52398978,182.07,181.96,3.07]
[1755605096365,4.52398978,182.06,181.97,3.07]
[1755605096558,3.62096794,182.1,181.97,3.07]
[1755605096758,4.52649886,182.09,181.97,3.07]
[1755605096960,4.52649886,182.08,181.97,3.07]
[1755605097163,4.52649886,182.07,181.97,3.07]
[1755605097363,4.52649886,182.06,181.97,3.07]
[1755605097565,4.52649886,182.05,181.97,3.07]
[1755605097759,3.62096794,182.1,181.97,3.07]
[1755605097960,4.52938513,182.09,181.97,3.07]
[1755605098161,4.52938513,182.08,181.97,3.07]
[1755605098463,4.52938513,182.07,181.97,3.07]
[1755605098663,4.52938513,182.06,181.97,3.07]
[1755605098857,4.52938513,182.05,181.97,3.07]
[1755605099069,3.62096794,182.1,181.97,3.07]
[1755605099261,4.53232102,182.09,181.97,3.07]
[1755605099462,4.53232102,182.08,181.97,3.07]
[1755605099667,4.53232102,182.07,181.97,3.07]
[1755605099871,4.53232102,182.06,181.97,3.07]
[1755605100167,3.62096794,182.1,181.97,3.07]
[1755605100168,4.53232102,182.05,181.97,3.07]
[1755605100369,3.62096794,182.1,181.98,3.07]
[1755605100569,3.62096794,182.1,181.97,5.4934]
[1755605100570,4.5350485,182.09,182.0,3.07]
[1755605100766,3.62096794,182.15,182.01,5.4923]
[1755605100964,4.53370849,182.14,182.02,6.69096794]
[1755605101168,4.53370849,182.13,182.03,3.07]
[1755605101365,4.53370849,182.12,182.03,3.07]
[1755605101565,4.53387787,182.11,182.04,3.07]
[1755605101768,3.62096794,182.15,182.04,3.07]
[1755605101962,4.53387787,182.14,182.04,3.07]
[1755605102164,4.53387787,182.13,182.04,3.07]
[1755605102366,8.15484581,182.12,182.04,3.07]
[1755605102565,4.53387787,182.11,182.04,3.07]
[1755605104265,4.53387787,182.11,182.0,3.07]
[1755605104475,3.62096794,182.09,182.0,3.07]
[1755605104671,4.53387787,182.08,182.0,3.07]
[1755605106877,3.62096794,182.12,182.0,3.07]
[1755605107073,4.53780759,182.11,182.0,3.07]
[1755605107371,4.53780759,182.1,182.0,3.07]
[1755605107569,4.53780759,182.09,182.0,3.07]
[1755605107777,3.62096794,182.12,182.0,3.07]
[1755605107975,4.53847273,182.11,182.0,3.07]
[1755605108168,3.62096794,182.12,182.0,3.07]
[1755605108169,4.53847273,182.1,182.0,3.07]
[1755605108368,4.53847273,182.09,182.0,3.07]
[1755605108569,3.62096794,182.12,182.0,3.07]
[1755605108777,4.53924019,182.11,182.0,3.07]
[1755605109276,3.62096794,182.12,182.0,3.07]
[1755605109277,4.53932236,182.1,182.0,3.07]
[1755605109576,4.53932236,182.09,182.0,3.07]
[1755605109772,3.62096794,182.12,182.0,3.07]
[1755605109978,4.54000249,182.11,182.0,3.07]
[1755605110173,3.62096794,182.12,182.0,3.07]
[1755605110174,4.54000249,182.1,182.0,3.07]
[1755605110375,4.54000249,182.09,182.0,3.07]
[1755605110580,3.62096794,182.12,182.0,3.07]
[1755605110779,4.54082158,182.11,182.0,3.07]
[1755605110977,4.54082158,182.1,182.0,3.07]
[1755605111281,3.62096794,182.12,182.0,3.07]
[1755605111474,4.54168543,182.11,182.0,3.07]
[1755605111673,4.54168543,182.1,182.0,3.07]
[1755605111974,3.62096794,182.12,182.0,3.07]
[1755605112177,4.5416847,182.11,182.0,3.07]
[1755605112381,4.5416847,182.1,182.0,3.07]
[1755605112686,3.62096794,182.12,182.0,3.07]
[1755605112976,4.54259466,182.11,182.0,3.07]
[1755605113281,4.54259466,182.1,182.0,3.07]
[1755605113485,3.62096794,182.12,182.0,3.07]
[1755605113777,4.54339025,182.11,182.0,3.07]
[1755605113975,4.54339025,182.1,182.0,3.07]
[1755605114182,3.62096794,182.12,182.0,3.07]
[1755605114381,4.54431085,182.11,182.0,3.07]
[1755605114572,4.54431085,182.1,182.0,3.07]
[1755605114774,3.62096794,182.12,182.0,3.07]
[1755605114976,4.544353,182.11,182.0,3.07]
[1755605115281,4.544353,182.1,182.0,3.07]
[1755605115481,3.62096794,182.12,182.0,3.07]
[1755605115680,4.54537248,182.11,182.01,3.07]
[1755605115983,3.62096794,182.12,182.01,3.07]
[1755605116178,4.54509475,182.11,182.01,3.07]
[1755605116378,3.62096794,182.12,182.01,3.07]
[1755605116573,4.54589605,182.11,182.01,3.07]
[1755605116779,3.62096794,182.12,182.01,3.07]
[1755605116982,4.54597873,182.11,182.01,3.07]
[1755605117280,3.62096794,182.12,182.01,3.07]
[1755605117483,4.54700489,182.11,182.01,3.07]
[1755605117782,3.62096794,182.12,182.01,3.07]
[1755605118084,4.54743266,182.11,182.01,3.07]
[1755605118273,3.62096794,182.12,182.01,3.07]
[1755605118474,4.54863359,182.11,182.01,3.07]
[1755605118678,3.62096794,182.12,182.01,3.07]
[1755605118885,4.54830854,182.11,182.01,5.4924]
[1755605119083,3.62096794,182.12,182.02,3.07]
[1755605119285,4.54830854,182.11,182.02,3.07]
[1755605119580,3.62096794,182.12,182.02,3.07]
[1755605119781,4.54922804,182.11,182.02,3.07]
[1755605119981,3.62096794,182.12,182.02,3.07]
[1755605120182,4.54922793,182.11,182.02,3.07]
[1755605120480,3.62096794,182.12,182.02,3.07]
[1755605120683,4.54916879,182.11,182.02,3.07]
[1755605120987,3.62096794,182.12,182.02,3.07]
[1755605121176,4.54916879,182.11,182.02,3.07]
[1755605121379,3.62096794,182.12,182.02,3.07]
[1755605121580,4.54871639,182.11,182.02,3.07]
[1755605121884,3.62096794,182.12,182.02,3.07]
[1755605122082,4.54871639,182.11,182.02,3.07]
[1755605122282,3.62096794,182.12,182.02,3.07]
[1755605122583,4.54832319,182.11,182.02,3.07]
[1755605122782,3.62096794,182.12,182.02,3.07]
[1755605122981,4.54832319,182.11,182.02,3.07]
[1755605123185,3.62096794,182.12,182.02,3.07]
[1755605123380,4.54838663,182.11,182.02,3.07]
[1755605123676,3.62096794,182.12,182.02,3.07]
[1755605123884,4.54822069,182.11,182.02,3.07]
[1755605124081,3.62096794,182.12,182.02,3.07]
[1755605124284,4.54836222,182.11,182.02,3.07]
[1755605124482,3.62096794,182.12,182.02,3.07]
[1755605124682,4.54823777,182.11,182.02,3.07]
[1755605124981,3.62096794,182.12,182.02,3.07]
[1755605125181,4.54823777,182.11,182.02,3.07]
[1755605125380,3.62096794,182.12,182.02,3.07]
[1755605125581,4.54828898,182.11,182.02,3.07]
[1755605125787,3.62096794,182.12,182.02,3.07]
[1755605125987,4.54828898,182.11,182.02,3.07]
[1755605126182,3.62096794,182.12,182.02,3.07]
[1755605126485,4.5484687,182.11,182.02,3.07]
[1755605126683,3.62096794,182.12,182.02,3.07]
[1755605126883,142.6972944,182.17,182.02,3.07]
[1755605126884,4.54841556,182.11,182.02,3.07]
[1755605127084,3.62096794,182.15,182.02,3.07]
[1755605127487,4.54864381,182.14,182.02,3.07]
[1755605127786,4.54864381,182.13,182.02,3.07]
[1755605127984,4.54864381,182.12,182.02,5.492]
[1755605128184,4.54864381,182.11,182.03,2.92]
[1755605128488,3.62096794,182.15,182.03,8.4118]
[1755605128688,4.54887173,182.14,182.04,2.92]
[1755605128992,4.54887173,182.13,182.04,2.92]
[1755605129290,4.54887173,182.12,182.04,2.92]
[1755605129592,3.62096794,182.18,182.05,2.92]
[1755605129783,4.5485475,182.17,182.05,2.92]
[1755605129988,4.5485475,182.16,182.05,2.92]
[1755605130179,4.5485475,182.15,182.07,2.92]
[1755605130383,4.5485475,182.14,182.07,2.92]
[1755605130581,3.62096794,182.18,182.07,2.92]
[1755605130787,4.5483352,182.17,182.07,2.92]
[1755605130987,4.5483352,182.16,182.07,2.92]
[1755605131191,4.5483352,182.15,182.07,2.92]
[1755605131385,3.62096794,182.18,182.07,2.92]
[1755605131386,4.5483352,182.14,182.07,2.92]
[1755605131689,3.62096794,182.18,182.07,2.92]
[1755605131889,4.54807275,182.17,182.07,2.92]
[1755605132086,4.54807275,182.16,182.07,2.92]
[1755605132388,4.54807275,182.15,182.07,2.92]
[1755605132689,4.54807275,182.14,182.07,2.92]
[1755605132889,3.62096794,182.18,182.07,2.92]
[1755605133093,4.54814916,182.17,182.07,2.92]
[1755605133299,4.54814916,182.16,182.07,2.92]
[1755605133595,4.54814916,182.15,182.07,2.92]
[1755605133789,4.54814916,182.14,182.07,2.92]
[1755605133979,3.62096794,182.18,182.07,2.92]
[1755605134179,4.54820934,182.17,182.07,2.92]
[1755605134379,4.54820934,182.16,182.07,2.92]
[1755605134584,4.54820934,182.15,182.07,2.92]
[1755605134783,4.54820934,182.14,182.07,2.92]
[1755605135085,4.54820934,182.13,182.07,2.92]
[1755605135288,3.62096794,182.18,182.07,2.92]
[1755605135591,4.54963194,182.17,182.07,2.92]
[1755605135785,4.54963194,182.16,182.07,2.92]
[1755605135986,4.54963194,182.15,182.07,2.92]
[1755605136188,4.54963194,182.14,182.07,2.92]
[1755605136390,3.62096794,182.18,182.07,2.92]
[1755605136586,3.62096794,182.15,182.04,2.92]
[1755605136786,4.54988086,182.14,182.04,2.92]
[1755605138183,4.54988086,182.13,182.04,2.92]
[1755605138583,4.54988086,182.13,182.01,3.62096794]
[1755605138786,4.54988086,182.13,182.01,6.54096794]
[1755605139088,4.54988086,182.13,182.02,2.92]
[1755605139288,4.54988086,182.12,182.02,2.92]
[1755605139589,4.54988086,182.11,182.02,2.92]
[1755605139788,4.54988086,182.1,182.02,2.92]
[1755605139992,4.54988086,182.09,182.02,2.92]
[1755605140193,3.62096794,182.14,182.02,2.92]
[1755605140490,7.1652212,182.13,182.02,2.92]
[1755605140694,4.55448784,182.12,182.02,2.92]
[1755605140880,4.55448784,182.11,182.02,2.92]
[1755605141079,4.55448784,182.1,182.02,2.92]
[1755605141284,3.62096794,182.14,182.02,2.92]
[1755605141285,4.55448784,182.09,182.02,2.92]
[1755605141591,3.62096794,182.14,182.02,2.92]
[1755605141786,4.55575245,182.13,182.02,2.92]
[1755605141980,4.55575245,182.12,182.02,2.92]
[1755605142184,4.55575245,182.11,182.02,2.92]
[1755605142391,4.55575245,182.1,182.02,5.492]
[1755605142591,3.62096794,182.14,182.03,2.92]
[1755605142888,4.55689887,182.13,182.03,2.92]
[1755605143089,4.55689887,182.12,182.03,5.4918]
[1755605143292,4.55689887,182.11,182.04,2.92]
[1755605143494,3.62096794,182.17,182.04,2.92]
[1755605143688,7.17027658,182.16,182.05,2.92]
[1755605143886,4.55766398,182.15,182.05,2.92]
[1755605144083,4.55766398,182.14,182.05,2.92]
[1755605144283,4.55766398,182.13,182.05,2.92]
[1755605144483,4.55766398,182.12,182.05,2.92]
[1755605144686,3.62096794,182.17,182.05,2.92]
[1755605144884,7.00655566,182.16,182.05,2.92]
[1755605145094,4.39335039,182.15,182.05,2.92]
[1755605145293,3.62096794,182.17,182.05,2.92]
[1755605145294,4.39335039,182.14,182.05,2.92]
[1755605145495,3.62096794,182.17,182.05,2.92]
[1755605145698,7.00617403,182.16,182.05,2.92]
[1755605145895,4.39311109,182.15,182.06,2.92]
[1755605146195,4.39299841,182.14,182.06,2.92]
[1755605146386,3.62096794,182.17,182.06,2.92]
[1755605146588,4.39248648,182.16,182.06,2.92]
[1755605146892,4.39248648,182.15,182.06,8.4109]
[1755605147092,4.39248648,182.14,182.07,2.92]
[1755605147303,3.62096794,182.17,182.07,2.92]
[1755605147594,4.39190271,182.16,182.07,2.92]
[1755605147796,4.39190271,182.15,182.07,2.92]
[1755605147994,4.39190271,182.14,182.07,2.92]
[1755605148197,9.59826234,182.2,182.08,2.92]
[1755605148499,4.40602535,182.19,182.08,2.92]
[1755605148695,4.40602535,182.18,182.08,2.92]
[1755605148899,4.40602535,182.17,182.09,5.4899]
[1755605149100,4.40602535,182.16,182.1,2.92]
[1755605149397,3.62096794,182.2,182.1,2.92]
[1755605149595,4.40323625,182.19,182.1,2.92]
[1755605149785,4.40323625,182.18,182.1,2.92]
[1755605149990,3.62096794,182.2,182.1,2.92]
[1755605149991,4.40323625,182.17,182.1,2.92]
[1755605150191,3.62096794,182.23,182.11,2.92]
[1755605150394,7.02408621,182.22,182.11,2.92]
[1755605150587,4.40295704,182.21,182.11,2.92]
[1755605150788,4.40295704,182.2,182.11,5.4892]
[1755605150987,4.40295704,182.19,182.12,2.92]
[1755605151287,3.62096794,182.23,182.12,2.92]
[1755605151488,7.02108466,182.22,182.12,2.92]
[1755605151792,4.40058683,182.21,182.12,2.92]
[1755605151997,4.40058683,182.2,182.12,2.92]
[1755605152204,4.40058683,182.19,182.12,2.92]
[1755605152497,3.62096794,182.17,182.07,2.92]
[1755605152800,4.40012171,182.16,182.07,2.92]
[1755605152995,3.62096794,182.2,182.07,2.92]
[1755605153293,7.02041389,182.19,182.07,2.92]
[1755605153489,4.4007051,182.18,182.07,2.92]
[1755605153690,4.4007051,182.17,182.07,2.92]
[1755605153893,4.4007051,182.16,182.07,2.92]
[1755605154094,3.62096794,182.2,182.07,2.92]
[1755605154398,7.02024094,182.19,182.07,2.92]
[1755605154601,3.62096794,182.2,182.07,2.92]
[1755605154796,7.02025401,182.19,182.07,2.92]
[1755605154997,4.40060893,182.18,182.07,2.92]
[1755605155201,4.40060893,182.17,182.07,2.92]
[1755605155397,4.40060893,182.16,182.07,2.92]
[1755605155598,4.40060893,182.15,182.07,2.92]
[1755605155800,3.62096794,182.2,182.07,2.92]
[1755605156005,7.02078543,182.19,182.07,2.92]
[1755605156196,7.02078543,182.18,182.07,2.92]
[1755605156390,4.40095396,182.17,182.07,2.92]
[1755605156595,4.40095396,182.16,182.07,2.92]
[1755605159005,4.40095396,182.15,182.07,2.92]
[1755605159304,3.62096794,182.2,182.07,2.92]
[1755605159504,7.02206397,182.19,182.07,2.92]
[1755605159704,7.02206397,182.18,182.07,2.92]
[1755605159903,4.40175136,182.17,182.07,2.92]
[1755605160101,3.62096794,182.2,182.07,2.92]
[1755605160102,4.40175136,182.16,182.07,2.92]
[1755605160404,4.40175136,182.15,182.07,2.92]
[1755605160617,3.62096794,182.2,182.07,6.54096794]
[1755605160907,4.40182908,182.19,182.08,2.99]
[1755605161099,4.40182908,182.18,182.08,2.99]
[1755605161302,4.40182908,182.17,182.08,2.99]
[1755605161502,3.62096794,182.2,182.08,2.99]
[1755605161703,4.40180457,182.19,182.08,2.99]
[1755605161906,4.40180457,182.18,182.08,2.99]
[1755605162103,4.40180457,182.17,182.08,2.99]
[1755605162305,3.62096794,182.2,182.08,2.99]
[1755605162504,4.40144987,182.19,182.08,2.99]
[1755605162701,3.62096794,182.2,182.08,2.99]
[1755605162906,7.02228888,182.19,182.08,2.99]
[1755605163105,7.02228888,182.18,182.08,2.99]
[1755605163304,8.02286444,182.17,182.08,2.99]
[1755605163506,4.4018965,182.16,182.08,2.99]
[1755605164607,4.4018965,182.16,182.04,2.99]
[1755605164810,3.62096794,182.14,182.04,2.99]
[1755605165005,3.62096794,182.11,182.04,2.99]
[1755605165212,4.4018965,182.1,182.04,2.99]
[1755605166903,3.62096794,182.11,182.04,2.99]
[1755605167908,4.40306769,182.1,182.04,2.99]
[1755605168109,3.62096794,182.11,182.04,2.99]
[1755605168312,4.40292466,182.1,181.99,2.99]
[1755605168512,4.40292466,182.09,181.99,2.99]
[1755605168704,3.62096794,182.11,181.99,2.99]
[1755605168919,4.40293953,182.1,181.99,2.99]
[1755605169112,4.40310576,182.09,181.99,2.99]
[1755605169312,3.62096794,182.11,181.99,2.99]
[1755605169511,4.40282517,182.1,181.99,2.99]
[1755605169711,3.62096794,182.11,181.99,2.99]
[1755605169914,4.40266181,182.1,181.99,2.99]
[1755605170112,3.62096794,182.11,181.99,2.99]
[1755605170313,4.40266181,182.1,181.99,2.99]
[1755605170514,3.62096794,182.11,181.99,2.99]
[1755605170711,4.4026485,182.1,181.99,2.99]
[1755605170908,3.62096794,182.11,181.99,2.99]
[1755605171104,4.40264924,182.1,181.99,2.99]
[1755605171309,4.40264924,182.09,181.99,2.99]
[1755605171510,4.40256123,182.08,181.99,2.99]
[1755605171708,3.62096794,182.11,181.99,2.99]
[1755605171911,7.02360275,182.1,181.99,2.99]
[1755605172113,4.40285557,182.09,181.99,2.99]
[1755605172413,4.40285557,182.08,181.99,2.99]
[1755605172615,3.62096794,182.11,181.99,2.99]
[1755605172815,7.02198897,182.1,181.99,2.99]
[1755605173027,4.40187741,182.09,181.99,2.99]
[1755605173209,4.40187741,182.08,181.99,2.99]
[1755605173519,4.40187741,182.07,181.99,2.99]
[1755605173712,4.40187741,182.06,181.99,2.99]
[1755605173914,3.62096794,182.11,181.99,2.99]
[1755605174112,7.02067766,182.1,181.99,2.99]
[1755605174414,4.40105116,182.09,181.99,2.99]
[1755605174614,8.0220191,182.08,181.99,2.99]
[1755605174810,4.40105116,182.07,181.99,2.99]
[1755605175009,3.62096794,182.08,181.99,2.99]
[1755605175209,4.39973793,182.07,181.99,2.99]
[1755605175511,3.62096794,182.1,181.99,2.99]
[1755605175712,4.39830409,182.09,181.99,2.99]
[1755605175916,3.62096794,182.1,181.99,2.99]
[1755605176115,4.39808011,182.09,182.0,3.62096794]
[1755605176315,3.62096794,182.13,182.01,2.99]
[1755605176517,4.39731225,182.12,182.01,2.99]
[1755605176718,4.39731225,182.11,182.01,2.99]
[1755605176919,4.39731225,182.1,182.01,2.99]
[1755605177212,4.39731225,182.09,182.01,2.99]
[1755605177418,3.62096794,182.1,182.01,2.99]
[1755605177623,4.39720264,182.09,182.01,2.99]
[1755605177816,3.62096794,182.1,182.01,2.99]
[1755605178015,4.39469037,182.09,182.01,2.99]
[1755605178219,4.39485631,182.08,182.01,2.99]
[1755605178520,3.62096794,182.1,182.01,2.99]
[1755605178715,4.39419979,182.09,182.01,2.99]
[1755605178917,3.62096794,182.1,182.01,2.99]
[1755605179118,4.3940324,182.09,182.01,2.99]
[1755605179418,3.62096794,182.1,182.01,2.99]
[1755605179610,4.39341479,182.09,182.01,2.99]
[1755605179814,3.62096794,182.1,182.01,2.99]
[1755605180014,4.39335756,182.09,182.01,2.99]
[1755605180223,3.62096794,182.1,182.01,2.99]
[1755605180522,4.39325537,182.09,182.01,2.99]
[1755605180722,3.62096794,182.1,182.01,2.99]
[1755605180927,4.39300747,182.09,182.01,2.99]
[1755605181222,3.62096794,182.1,182.01,2.99]
[1755605181422,4.39288394,182.09,182.01,2.99]
[1755605181624,3.62096794,182.1,182.01,2.99]
[1755605181812,4.39258569,182.09,182.01,2.99]
[1755605182017,3.62096794,182.1,182.01,2.99]
[1755605182217,4.39258569,182.09,182.01,2.99]
[1755605182418,3.62096794,182.1,182.01,2.99]
[1755605182721,4.39220581,182.09,182.01,2.99]
[1755605182922,3.62096794,182.1,182.01,2.99]